{"text_format":"1","workbook":"xlsx","n_sheets":2,"sheets":["Moto_Meibo","Kasa "],"not_rendered":{"charts":0,"images":1,"macros":1,"external_links":0,"defined_names":9,"comments":0,"pivot_tables":0},"unopened":[],"bounds":{"document_bytes":16777216,"sheet_cells":100000,"rows_first":2000,"rows_last":500,"rows_between":2000,"halvings":0,"cell_chars":16384,"cell_head_chars":4096},"cells_cut":0,"cells_raw":0,"read":"whole","date_system":"1900"}

{"sheet":"Moto_Meibo","index":0,"n_rows":53,"n_cols":9,"rows_kept":53,"cut":false,"hidden":false,"merged":[]}
[]
[null,7,"年"]
[null,1,"組"]
[]
[null,"自動入力"]
[null,{"$f":"COUNTA($D$11:$D$50)","v":40},"人"]
[]
[]
[]
[null,null,"No.","姓名","ふりがな（自動入力）","性別","苗字(自動入力）",null,"みょうじ(自動入力）"]
[null,null,1,"石田　愛美",{"$f":"PHONETIC(D11)","v":"いしだ　あいみ"},"女",{"$f":"IFERROR(TRIM(LEFT($D11,FIND(\" \",$D11))),IFERROR(TRIM(LEFT($D11,FIND(\"　\",$D11))),\"\"))","v":"石田"},null,{"$f":"IFERROR(TRIM(LEFT($E11,FIND(\" \",$E11))),IFERROR(TRIM(LEFT($E11,FIND(\"　\",$E11))),\"\"))","v":"いしだ"}]
[null,null,2,"伊藤　望結",{"$f":"PHONETIC(D12)","v":"いとう　みゆ"},"女",{"$f":"IFERROR(TRIM(LEFT($D12,FIND(\" \",$D12))),IFERROR(TRIM(LEFT($D12,FIND(\"　\",$D12))),\"\"))","v":"伊藤"},null,{"$f":"IFERROR(TRIM(LEFT($E12,FIND(\" \",$E12))),IFERROR(TRIM(LEFT($E12,FIND(\"　\",$E12))),\"\"))","v":"いとう"}]
[null,null,3,"上杉　工","うえすぎ　たくみ","男",{"$f":"IFERROR(TRIM(LEFT($D13,FIND(\" \",$D13))),IFERROR(TRIM(LEFT($D13,FIND(\"　\",$D13))),\"\"))","v":"上杉"},null,{"$f":"IFERROR(TRIM(LEFT($E13,FIND(\" \",$E13))),IFERROR(TRIM(LEFT($E13,FIND(\"　\",$E13))),\"\"))","v":"うえすぎ"}]
[null,null,4,"上戸　架純","うえと　かすみ","女","上戸",null,"うえと"]
[null,null,5,"大石　心","おおいし　しん","男","大石",null,"おおいし"]
[null,null,6,"大久保　征悦","おおくぼ　ゆきよし","男","大久保",null,"おおくぼ"]
[null,null,7,"大阪　太郎","おおさか　たろう","男","大阪",null,"おおさか"]
[null,null,8,"織田　翼","おだ　つばさ","男","織田",null,"おだ"]
[null,null,9,"菅野　結菜","かんの　ゆうな","女","菅野",null,"かんの"]
[null,null,10,"木戸　くるみ","きど　くるみ","女","木戸",null,"きど"]
[null,null,11,"木下　悠吾","きのした　ゆうご","男","木下",null,"きのした"]
[null,null,12,"国仲　海斗","くになか　かいと","男","国仲",null,"くになか"]
[null,null,13,"熊田　涼太","くまだ　りょうた","男","熊田",null,"くまだ"]
[null,null,14,"栗山　綾乃","くりやま　あやの","女","栗山",null,"くりやま"]
[null,null,15,"小池　優衣","こいけ　ゆい","女","小池",null,"こいけ"]
[null,null,16,"小松　美智子","こまつ　みちこ","女","小松",null,"こまつ"]
[null,null,17,"近藤　優輝","こんどう　ゆうき","男","近藤",null,"こんどう"]
[null,null,18,"西郷　啓太","さいごう　けいた","男","西郷",null,"さいごう"]
[null,null,19,"坂本　愛莉","さかもと　あいり","女","坂本",null,"さかもと"]
[null,null,20,"佐藤　琴音","さとう　ことね","女","佐藤",null,"さとう"]
[null,null,21,"篠原　翔","しのはら　しょう","男","篠原",null,"しのはら"]
[null,null,22,"柴咲　真理","しばざき　まり","女","柴咲",null,"しばざき"]
[null,null,23,"島田　美優","しまだ　みゆ","女","島田",null,"しまだ"]
[null,null,24,"瀬戸　真央","せと　まお","女","瀬戸",null,"せと"]
[null,null,25,"高杉　芽衣","たかすぎ　めい","女","高杉",null,"たかすぎ"]
[null,null,26,"武田　太一","たけだ　たいち","男","武田",null,"たけだ"]
[null,null,27,"遠山　蒼太","とおやま　そうた","男","遠山",null,"とおやま"]
[null,null,28,"徳川　大輝","とくがわ　たいき","男","徳川",null,"とくがわ"]
[null,null,29,"長澤　美緒","ながさわ　みお","女","長澤",null,"ながさわ"]
[null,null,30,"夏木　彩音","なつき　あやね","女","夏木",null,"なつき"]
[null,null,31,"野田　健太","のだ　けんた","男","野田",null,"のだ"]
[null,null,32,"平賀　真衣","ひらが　まい","女","平賀",null,"ひらが"]
[null,null,33,"広末　未来","ひろすえ　みらい","女","広末",null,"ひろすえ"]
[null,null,34,"深田　雄太","ふかだ　ゆうた","男","深田",null,"ふかだ"]
[null,null,35,"福沢　陽太","ふくざわ　ようた","男","福沢",null,"ふくざわ"]
[null,null,36,"堀北　美由紀","ほりきた　みゆき","女","堀北",null,"ほりきた"]
[null,null,37,"松尾　歩","まつお　あゆむ","男","松尾",null,"まつお"]
[null,null,38,"眞鍋　あかり","まなべ　あかり","女","眞鍋",null,"まなべ"]
[null,null,39,"宮﨑　遥","みやざき　はるか","女","宮﨑",null,"みやざき"]
[null,null,40,"宮本　瑛大","みやもと　えいた","男","宮本",null,"みやもと"]
[null,null,41,null,"",null,"",null,""]
[null,null,42,null,"",null,"",null,""]
[null,null,43,null,"",null,"",null,""]

{"sheet":"Kasa ","index":1,"n_rows":46,"n_cols":17,"rows_kept":46,"cut":false,"hidden":false,"merged":[[0,10,0,13],[1,9,1,13]]}
[null,null,null,null,null,null,null,null,null,null,"「当番円形名簿」作成",null,null,null,"F.Ozaki　作"]
[null,null,null,null,null,null,null,null,null,"セルの削除。シート名変更しないでください。\n名前の列の中に空白セルがないようにしてください。",null,null,null,null,"furutom　改変"]
[]
[null,null,null,null,null,null,null,null,null,"人数",null,null,"№","名　前",null,"項目名","人数"]
[null,null,null,null,null,null,null,null,null,{"$f":"COUNTA($N$5:$N$50)","v":0},null,null,1,null,1,"ほうき",4]
[null,null,null,null,null,null,null,null,null,null,null,null,2,null,2,"ぞうきん",3]
[null,null,null,null,null,null,null,null,null,null,null,null,3,null,3,"机はこび",4]
[null,null,null,null,null,null,null,null,null,null,null,null,4,null,4,"黒板など",2]
[null,null,null,null,null,null,null,null,null,null,null,null,5,null,5,"その他１"]
[null,null,null,null,null,null,null,null,null,null,null,null,6,null,6,"その他２"]
[null,null,null,null,null,null,null,null,null,null,null,null,7,null,7,"その他３"]
[null,null,null,null,null,null,null,null,null,null,null,null,8,null,8,"その他４"]
[null,null,null,null,null,null,null,null,null,null,null,null,9]
[null,null,null,null,null,null,null,null,null,null,null,null,10,null,null,"係の人数",{"$f":"SUM(Q5:Q12)","v":13}]
[null,null,null,null,null,null,null,null,null,null,null,null,11]
[null,null,null,null,null,null,null,null,null,null,null,null,12]
[null,null,null,null,null,null,null,null,null,null,null,null,13]
[null,null,null,null,null,null,null,null,null,null,null,null,14]
[null,null,null,null,null,null,null,null,null,null,null,null,15]
[null,null,null,null,null,null,null,null,null,null,null,null,16]
[null,null,null,null,null,null,null,null,null,null,null,null,17]
[null,null,null,null,null,null,null,null,null,null,null,null,18]
[null,null,null,null,null,null,null,null,null,null,null,null,19]
[null,null,null,null,null,null,null,null,null,null,null,null,20]
[null,null,null,null,null,null,null,null,null,null,null,null,21]
[null,null,null,null,null,null,null,null,null,null,null,null,22]
[null,null,null,null,null,null,null,null,null,null,null,null,23]
[null,null,null,null,null,null,null,null,null,null,null,null,24]
[null,null,null,null,null,null,null,null,null,null,null,null,25]
[null,null,null,null,null,null,null,null,null,null,null,null,26]
[null,null,null,null,null,null,null,null,null,null,null,null,27]
[null,null,null,null,null,null,null,null,null,null,null,null,28]
[null,null,null,null,null,null,null,null,null,null,null,null,29]
[null,null,null,null,null,null,null,null,null,null,null,null,30]
[null,null,null,null,null,null,null,null,null,null,null,null,31]
[null,null,null,null,null,null,null,null,null,null,null,null,32]
[null,null,null,null,null,null,null,null,null,null,null,null,33]
[null,null,null,null,null,null,null,null,null,null,null,null,34]
[null,null,null,null,null,null,null,null,null,null,null,null,35]
[null,null,null,null,null,null,null,null,null,null,null,null,36]
[null,null,null,null,null,null,null,null,null,null,null,null,37]
[null,null,null,null,null,null,null,null,null,null,null,null,38]
[null,null,null,null,null,null,null,null,null,null,null,null,39]
[null,null,null,null,null,null,null,null,null,null,null,null,40]
[null,null,null,null,null,null,null,null,null,null,null,null,41]
[null,null,null,null,null,null,null,null,null,null,null,null,42]